lending/lending_fUSD_20250408
["ID","MTS","AMOUNT","RATE_DAILY","PERIOD"]
[357550475,1744135905022,-500.0,0.00056986,120]
[357550476,1744135905032,-793.73,0.00056986,120]
[357550477,1744135905043,-2030.76,0.00056986,120]
[357550478,1744135905053,-645.49,0.00056986,120]
[357550479,1744135905063,-500.0,0.00056986,120]
[357550480,1744135905072,-500.0,0.00056986,120]
[357550481,1744135905082,-543.59,0.00056986,120]
[357550482,1744135905091,-1107.48,0.00056986,120]
[357550483,1744135905101,-292.13235072,0.00056986,120]
[357550484,1744135905110,-500.0,0.00056986,120]
[357550485,1744135905119,-1122.05,0.00056986,120]
[357550486,1744135905129,-500.0,0.00056986,120]
[357550487,1744135905138,-500.0,0.00056986,8]
[357550488,1744135905148,-1784.68,0.00056986,120]
[357550489,1744135905159,-918.42,0.00056986,120]
[357550490,1744135905168,-500.0,0.00056986,120]
[357550491,1744135905178,-665.51,0.00056986,120]
[357550492,1744135905187,-500.0,0.00056986,120]
[357550493,1744135905196,-578.6,0.00056986,120]
[357550494,1744135905206,-841.6,0.00056986,120]
[357550495,1744135905216,-1052.26,0.00056986,120]
[357550496,1744135905225,-498.80797167,0.00056986,120]
[357550497,1744135905235,-528.16,0.00056986,120]
[357550498,1744135905244,-768.18,0.00056986,120]
[357550499,1744135905254,-1672.07,0.00056986,118]
[357550500,1744135905264,-500.0,0.00056986,120]
[357550501,1744135905274,-1296.01,0.00056986,120]
[357550502,1744135905284,-1146.51,0.00056986,120]
[357550503,1744135905295,-500.0,0.00056986,120]
[357550504,1744135905305,-611.50559889,0.00056986,120]
[357550505,1744135905314,-500.0,0.00056986,120]
[357550506,1744135905324,-500.0,0.00056986,120]
[357550507,1744135905333,-500.0,0.00056986,120]
[357550508,1744135905343,-803.86,0.00056986,120]
[357550509,1744135905352,-2828.98,0.00056986,120]
[357550510,1744135905362,-551.03016937,0.00056986,120]
[357550511,1744135905372,-825.98,0.00056986,120]
[357550512,1744135905382,-500.0,0.00056986,120]
[357550513,1744135905391,-513.55,0.00056986,120]
[357550514,1744135905400,-1752.77,0.00056986,120]
[357550515,1744135905410,-500.0,0.00056986,120]
[357550516,1744135905419,-1469.03,0.00056986,120]
[357550517,1744135905429,-674.74,0.00056986,120]
[357550518,1744135905438,-734.29,0.00056986,120]
[357550519,1744135905448,-895.79,0.00056986,120]
[357550520,1744135905459,-931.13,0.00056986,120]
[357550521,1744135905470,-548.95,0.00056986,120]
[357550522,1744135905479,-500.0,0.00056986,120]
[357550523,1744135905489,-1851.47,0.00056986,120]
[357550524,1744135905499,-500.0,0.00056986,120]
[357550525,1744135905509,-500.0,0.00056986,120]
[357550526,1744135905518,-500.0,0.00056986,120]
[357550527,1744135905528,-943.92,0.00056986,120]
[357550528,1744135905538,-500.0,0.00056986,120]
[357550529,1744135905552,-2817.37,0.00056986,120]
[357550530,1744135905561,-245.93804045,0.00056986,60]
[357550531,1744135905571,-643.01,0.00056986,120]
[357550532,1744135905582,-500.0,0.00056986,120]
[357550533,1744135905592,-535.91,0.00056986,120]
[357550534,1744135905602,-500.0,0.00056986,120]
[357550535,1744135905612,-500.0,0.00056986,120]
[357550536,1744135905625,-1220.84,0.00056986,2]
[357550537,1744135905635,-2753.64,0.00056986,100]
[357550538,1744135905644,-500.0,0.00056986,120]
[357550539,1744135905655,-500.0,0.00056986,120]
[357550540,1744135905665,-2064.77,0.00056986,120]
[357550541,1744135905675,-500.0,0.00056986,120]
[357550542,1744135905686,-500.0,0.00056986,120]
[357550543,1744135905696,-500.0,0.00056986,120]
[357550544,1744135905706,-1736.05,0.00056986,120]
[357550545,1744135905716,-777.99,0.00056986,120]
[357550546,1744135905726,-539.95212879,0.00056986,120]
[357550547,1744135905736,-2563.65,0.00056986,120]
[357550548,1744135905745,-500.0,0.00056986,120]
[357550549,1744135905755,-1027.58,0.00056986,120]
[357550550,1744135905764,-751.14,0.00056986,120]
[357550551,1744135905774,-1287.88,0.00056986,120]
[357550552,1744135905784,-646.32,0.00056986,120]
[357550553,1744135905796,-500.0,0.00056986,120]
[357550554,1744135905806,-500.0,0.00056986,120]
[357550555,1744135905815,-509.41,0.00056986,120]
[357550556,1744135905825,-500.0,0.00056986,120]
[357550557,1744135905835,-500.0,0.00056986,120]
[357550558,1744135905845,-575.39,0.00056986,120]
[357550559,1744135905855,-2129.03,0.00056986,120]
[357550560,1744135905864,-1105.86,0.00056986,120]
[357550561,1744135905875,-1398.27,0.00056986,120]
[357550562,1744135905885,-500.0,0.00056986,120]
[357550563,1744135905894,-500.0,0.00056986,120]
[357550564,1744135905904,-500.0,0.00056986,120]
[357550565,1744135905920,-500.0,0.00056986,120]
[357550566,1744135905934,-500.0,0.00056986,120]
[357550567,1744135905945,-813.0,0.00056986,120]
[357550568,1744135905956,-500.0,0.00056986,120]
[357550569,1744135905966,-500.0,0.00056986,120]
[357550570,1744135905976,-1852.62,0.00056986,120]
[357550571,1744135905986,-1231.16,0.00056986,120]
[357550572,1744135905995,-2129.78,0.00056986,120]
[357550573,1744135906005,-500.0,0.00056986,120]
[357550574,1744135906015,-500.0,0.00056986,120]
[357550575,1744135906025,-817.54,0.00056986,120]
[357550576,1744135906035,-735.03,0.00056986,120]
[357550577,1744135906045,-500.0,0.00056986,120]
[357550578,1744135906055,-500.0,0.00056986,120]
[357550579,1744135906065,-500.0,0.00056986,120]
[357550580,1744135906075,-538.82,0.00056986,120]
[357550581,1744135906085,-500.0,0.00056986,120]
[357550582,1744135906095,-794.86,0.00056986,120]
[357550583,1744135906104,-500.0,0.00056986,120]
[357550584,1744135906113,-589.43,0.00056986,120]
[357550585,1744135906123,-500.0,0.00056986,120]
[357550586,1744135906133,-500.0,0.00056986,120]
[357550587,1744135906143,-703.81,0.00056986,120]
[357550588,1744135906153,-1762.5,0.00056986,120]
[357550589,1744135906163,-500.0,0.00056986,120]
[357550590,1744135906173,-1383.32,0.00056986,120]
[357550591,1744135906182,-285.74257608,0.00056986,2]
[357550592,1744135906192,-150.0,0.00056999,120]
[357550593,1744135906201,-500.0,0.00057,120]
[357550594,1744135906211,-248.13,0.00057048,120]
[357550595,1744135906220,-3620.08,0.000571,60]
[357550596,1744135906230,-150.0,0.00057188,120]
[357550597,1744135906240,-5222.51,0.000572,60]
[357550598,1744135906250,-1460.93,0.00057218,120]
[357550599,1744135906260,-884.11,0.00057218,120]
[357550600,1744135906269,-150.0,0.00057255,120]
[357550601,1744135906279,-500.0,0.00057259,120]
[357550602,1744135906288,-500.0,0.00057259,120]
[357550603,1744135906299,-522.2,0.00057259,120]
[357550604,1744135906308,-522.2,0.00057259,120]
[357550605,1744135906318,-698.53,0.00057259,120]
[357550606,1744135906327,-698.53,0.00057259,120]
[357550607,1744135906337,-500.0,0.0005726,16]
[357550608,1744135906346,-265.17158938,0.00057273,120]
[357550609,1744135906356,-689.11914121,0.00057273,120]
[357550610,1744135906366,-1663.12858184,0.00057273,120]
[357550611,1744135906375,-150.0,0.00057367,120]
[357550612,1744135906385,-169.21,0.00057473,2]
[357550613,1744135906396,-150.0,0.00057533,120]
[357550614,1744135906406,-152.0,0.0005759,5]
[357550615,1744135906417,-673.31,0.00057739,120]
[357550616,1744135906428,-265.17158938,0.00057749,120]
[357550617,1744135906438,-689.11914121,0.00057749,120]
[357550618,1744135906447,-1663.12858184,0.00057749,120]
[357550619,1744135906457,-580.15,0.00057807,120]
[357550620,1744135906467,-500.0,0.00057807,120]
[357550621,1744135906651,-932.66,0.00057807,120]
[357550622,1744135906665,-613.35,0.00057807,120]
[357550623,1744135906675,-500.0,0.00057807,120]
[357550624,1744135906685,-581.16,0.00057807,120]
[357550625,1744135906695,-72207.66,0.00057807,7]
[357550626,1744135906706,-1365.37,0.00057807,120]
[357550627,1744135906716,-1716.32,0.00057807,120]
[357550628,1744135906725,-2936.12,0.00057807,120]
[357550629,1744135906736,-681.07,0.00057807,120]
[357550630,1744135906745,-500.0,0.00057807,120]
[357550631,1744135906756,-1759.78,0.00057807,120]
[357550632,1744135906766,-1127.76,0.00057807,120]
[357550633,1744135906777,-500.0,0.00057807,120]
[357550634,1744135906787,-500.0,0.00057807,120]
[357550635,1744135906798,-500.0,0.00057807,120]
[357550636,1744135906808,-9035.99,0.00057807,120]
[357550637,1744135906817,-772.33,0.00057807,120]
[357550638,1744135906827,-500.0,0.00057807,120]
[357550639,1744135906837,-500.0,0.00057807,120]
[357550640,1744135906847,-500.0,0.00057807,120]
[357550641,1744135906856,-3050.45,0.00057807,120]
[357550642,1744135906865,-726.43,0.00057807,120]
[357550643,1744135906875,-1239.1,0.00057807,120]
[357550644,1744135906884,-325.70435766,0.00057807,120]
[357550645,1744135906894,-516.0,0.00057807,120]
[357550646,1744135906904,-1483.68,0.00057807,120]
[357550647,1744135906914,-500.0,0.00057807,120]
[357550648,1744135906924,-3034.88,0.00057807,120]
[357550649,1744135906933,-573.44,0.00057807,120]
[357550650,1744135906943,-150.0,0.00057807,120]
[357550651,1744135906953,-789.9,0.00057807,120]
[357550652,1744135906963,-500.0,0.00057807,120]
[357550653,1744135906973,-545.03,0.00057808,120]
[357550654,1744135906982,-500.0,0.00057808,120]
[357550655,1744135906992,-538.21,0.00057808,120]
[357550656,1744135907001,-500.0,0.00057808,120]
[357550657,1744135907011,-500.0,0.00057808,120]
[357550658,1744135907019,-500.0,0.00057808,120]
[357550659,1744135907030,-500.0,0.00057808,120]
[357550660,1744135907039,-500.0,0.00057808,120]
[357550661,1744135907050,-500.0,0.00057808,120]
[357550662,1744135907060,-500.0,0.00057808,120]
[357550663,1744135907070,-500.0,0.00057808,120]
[357550664,1744135907079,-686.22,0.00057808,120]
[357550665,1744135907089,-589.26,0.00057808,120]
[357550666,1744135907100,-500.0,0.00057808,120]
[357550667,1744135907109,-500.0,0.00057808,120]
[357550668,1744135907119,-500.0,0.00057808,120]
[357550669,1744135907129,-500.0,0.00057808,120]
[357550670,1744135907138,-500.0,0.00057808,120]
[357550671,1744135907148,-500.0,0.00057808,120]
[357550672,1744135907157,-500.0,0.00057808,120]
[357550673,1744135907167,-531.84,0.00057808,120]
[357550674,1744135907176,-500.0,0.00057808,120]
[357550675,1744135907186,-500.0,0.00057808,120]
[357550676,1744135907196,-500.0,0.00057808,120]
[357550677,1744135907205,-1392.68,0.00057808,120]
[357550678,1744135907214,-1013.5,0.00057808,120]
[357550679,1744135907223,-500.0,0.00057808,120]
[357550680,1744135907233,-500.0,0.00057808,120]
[357550681,1744135907243,-500.0,0.00057808,120]
[357550682,1744135907252,-343.89078804,0.00057808,120]
[357550683,1744135907262,-500.0,0.00057808,120]
[357550684,1744135907271,-502.78,0.00057808,120]
[357550685,1744135907280,-500.0,0.00057808,120]
[357550686,1744135907290,-500.0,0.00057808,120]
[357550687,1744135907301,-500.0,0.00057808,120]
[357550688,1744135907311,-500.0,0.00057808,120]
[357550689,1744135907320,-500.0,0.00057808,120]
[357550690,1744135907331,-500.0,0.00057808,120]
[357550691,1744135907341,-1285.07,0.00057808,10]
[357550692,1744135907351,-500.0,0.00057808,120]
[357550693,1744135907361,-500.0,0.00057808,120]
[357550694,1744135907371,-729.33,0.00057808,30]
[357550695,1744135907380,-583.31,0.00057808,120]
[357550696,1744135907390,-1155.37,0.00057808,120]
[357550697,1744135907399,-500.0,0.00057808,120]
[357550698,1744135907409,-651.5,0.00057808,120]
[357550699,1744135907419,-171.7002027,0.00057808,120]
[357550700,1744135907430,-500.0,0.00057808,120]
[357550701,1744135907440,-500.0,0.00057808,120]
[357550702,1744135907449,-986.5,0.00057808,120]
[357550703,1744135907459,-829.06,0.00057808,120]
[357550704,1744135907469,-500.0,0.00057808,120]
[357550705,1744135907478,-500.0,0.00057808,120]
[357550706,1744135907488,-500.0,0.00057808,120]
[357550707,1744135907498,-500.0,0.00057808,120]
[357550708,1744135907508,-500.0,0.00057808,120]
[357550709,1744135907518,-500.0,0.00057808,120]
[357550710,1744135907527,-853.97,0.00057808,120]
[357550711,1744135907537,-2000.0,0.00057808,2]
[357550712,1744135907548,-839.17,0.00057808,120]
[357550713,1744135907558,-500.0,0.00057808,120]
[357550714,1744135907568,-500.0,0.00057808,120]
[357550715,1744135907578,-500.0,0.00057808,120]
[357550716,1744135907587,-500.0,0.00057808,120]
[357550717,1744135907597,-500.0,0.00057808,120]
[357550718,1744135907606,-702.55,0.00057808,120]
[357550719,1744135907616,-500.0,0.00057808,2]
[357550720,1744135907630,-677.2,0.00057808,120]
[357550721,1744135907639,-790.51,0.00057808,120]
[357550722,1744135907649,-500.0,0.00057808,120]
[357550723,1744135907659,-500.0,0.00057808,120]
[357550724,1744135907669,-717.93,0.00057808,120]
[357550725,1744135907679,-500.0,0.00057808,120]
[357550726,1744135907689,-500.0,0.00057808,2]
[357550727,1744135907699,-1019.54,0.00057808,120]
[357550728,1744135907710,-500.0,0.00057808,120]
[357550729,1744135907720,-571.65,0.00057808,120]
[357550730,1744135907730,-500.0,0.00057808,120]
[357550731,1744135907740,-500.0,0.00057808,120]
[357550732,1744135907749,-567.81,0.00057808,120]
[357550733,1744135907759,-500.0,0.00057808,120]
[357550734,1744135907768,-954.85,0.00057808,120]
[357550735,1744135907778,-500.0,0.00057808,120]
[357550736,1744135907787,-1425.74,0.00057808,30]
[357550737,1744135907800,-1998.88,0.00057808,120]
[357550738,1744135907809,-1354.7,0.00057808,120]
[357550739,1744135907819,-500.0,0.00057808,120]
[357550740,1744135907829,-500.0,0.00057808,120]
[357550741,1744135907839,-500.0,0.00057808,120]
[357550742,1744135907849,-500.0,0.00057808,120]
[357550743,1744135907859,-1046.86,0.00057808,120]
[357550744,1744135907869,-500.0,0.00057808,120]
[357550745,1744135907879,-537.7,0.00057808,120]
[357550746,1744135907888,-524.83,0.00057808,120]
[357550747,1744135907899,-500.0,0.00057808,120]
[357550748,1744135907908,-248.08552638,0.00057808,120]
[357550749,1744135907918,-812.56,0.00057808,120]
[357550750,1744135907928,-1644.68,0.00057808,120]
[357550751,1744135907937,-884.4,0.00057808,120]
[357550752,1744135907947,-500.0,0.00057808,120]
[357550753,1744135907957,-727.96,0.00057808,120]
[357550754,1744135907967,-500.0,0.00057808,120]
[357550755,1744135907976,-500.0,0.00057808,120]
[357550756,1744135907986,-1273.1,0.00057808,120]
[357550757,1744135907995,-500.0,0.00057808,120]
[357550758,1744135908005,-1048.09,0.00057808,120]
[357550759,1744135908015,-500.0,0.00057808,120]
[357550760,1744135908025,-965.74,0.00057808,120]
[357550761,1744135908034,-500.0,0.00057808,120]
[357550762,1744135908046,-554.97,0.00057808,120]
[357550763,1744135908056,-500.0,0.00057808,120]
[357550764,1744135908066,-500.0,0.00057808,120]
[357550765,1744135908076,-794.37,0.00057808,120]
[357550766,1744135908087,-500.0,0.00057808,120]
[357550767,1744135908096,-500.0,0.00057808,120]
[357550768,1744135908106,-334.45297894,0.00057808,120]
[357550769,1744135908115,-635.52,0.00057808,120]
[357550770,1744135908125,-530.29,0.00057808,120]
[357550771,1744135908136,-500.0,0.00057808,120]
[357550772,1744135908146,-1026.05,0.00057808,120]
[357550773,1744135908156,-500.0,0.00057808,120]
[357550774,1744135908165,-500.0,0.00057808,120]
[357550775,1744135908175,-500.0,0.00057808,120]
[357550776,1744135908185,-541.89,0.00057808,120]
[357550777,1744135908195,-500.0,0.00057808,120]
[357550778,1744135908204,-500.0,0.00057808,120]
[357550779,1744135908214,-500.0,0.00057808,120]
[357550780,1744135908224,-913.6,0.00057808,120]
[357550781,1744135908233,-581.87,0.00057808,120]
[357550782,1744135908243,-500.0,0.00057808,120]
[357550783,1744135908252,-500.0,0.00057808,120]
[357550784,1744135908262,-352.40287184,0.00057808,120]
[357550785,1744135908272,-640.64,0.00057808,30]
[357550786,1744135908283,-500.0,0.00057808,120]
[357550787,1744135908293,-541.35,0.00057808,120]
[357550788,1744135908304,-500.0,0.00057808,120]
[357550789,1744135908314,-500.0,0.00057808,120]
[357550790,1744135908325,-500.0,0.00057808,120]
[357550791,1744135908337,-985.93,0.00057808,120]
[357550792,1744135908347,-531.64,0.00057808,120]
[357550793,1744135908357,-500.0,0.00057808,120]
[357550794,1744135908368,-649.2860597,0.00057808,120]
[357550795,1744135908378,-1206.08,0.00057808,120]
[357550796,1744135908388,-500.0,0.00057808,120]
[357550797,1744135908398,-500.0,0.00057808,120]
[357550798,1744135908408,-500.0,0.00057808,120]
[357550799,1744135908418,-500.0,0.00057808,120]
[357550800,1744135908428,-706.13,0.00057808,120]
[357550801,1744135908438,-500.0,0.00057808,120]
[357550802,1744135908448,-500.0,0.00057808,120]
[357550803,1744135908457,-500.0,0.00057808,120]
[357550804,1744135908468,-1079.35,0.00057808,120]
[357550805,1744135908479,-500.0,0.00057808,120]
[357550806,1744135908490,-500.0,0.00057808,120]
[357550807,1744135908500,-500.0,0.00057808,120]
[357550808,1744135908510,-726.46,0.00057808,120]
[357550809,1744135908520,-615.19,0.00057808,120]
[357550810,1744135908530,-500.0,0.00057808,120]
[357550811,1744135908540,-1342.18,0.00057808,120]
[357550812,1744135908552,-687.95,0.00057808,120]
[357550813,1744135908563,-646.6,0.00057808,120]
[357550814,1744135908573,-547.83,0.00057808,120]
[357550815,1744135908583,-500.0,0.00057808,120]
[357550816,1744135908594,-1247.459857,0.00057808,120]
[357550817,1744135908604,-513.92,0.00057808,120]
[357550818,1744135908615,-396.28,0.00057808,120]
[357550819,1744135908628,-500.0,0.00057808,120]
[357550820,1744135908639,-500.0,0.00057808,7]
[357550821,1744135908649,-500.0,0.00057808,120]
[357550822,1744135908660,-3011.86,0.00057808,120]
[357550823,1744135908670,-711.83,0.00057808,120]
[357550824,1744135908680,-500.0,0.00057808,120]
[357550825,1744135908691,-500.0,0.00057808,120]
[357550826,1744135908701,-500.0,0.00057808,120]
[357550827,1744135908712,-853.97,0.00057808,120]
[357550828,1744135908722,-500.0,0.00057808,120]
[357550829,1744135908731,-588.885889,0.00057808,120]
[357550830,1744135908741,-500.0,0.00057808,120]
[357550831,1744135908750,-627.5,0.00057808,120]
[357550832,1744135908760,-500.0,0.00057808,120]
[357550833,1744135908770,-500.0,0.00057808,120]
[357550834,1744135908780,-595.62,0.00057808,120]
[357550835,1744135908791,-500.0,0.00057808,120]
[357550836,1744135908803,-631.1,0.00057808,120]
[357550837,1744135908812,-500.0,0.00057808,120]
[357550838,1744135908822,-500.0,0.00057808,120]
[357550839,1744135908832,-500.0,0.00057808,120]
[357550840,1744135908842,-500.0,0.00057808,120]
[357550841,1744135908851,-500.0,0.00057808,120]
[357550842,1744135908862,-935.92,0.00057808,120]
[357550843,1744135908871,-500.0,0.00057808,120]
[357550844,1744135908881,-500.0,0.00057808,120]
[357550845,1744135908890,-500.0,0.00057808,120]
[357550846,1744135908899,-500.0,0.00057808,120]
[357550847,1744135908909,-500.0,0.00057808,120]
[357550848,1744135908919,-628.78549427,0.00057808,120]
[357550849,1744135908929,-500.0,0.00057808,120]
[357550850,1744135908938,-500.0,0.00057808,120]
[357550851,1744135908948,-882.81,0.00057808,120]
[357550852,1744135908958,-500.0,0.00057808,120]
[357550853,1744135908967,-623.11,0.00057808,120]
[357550854,1744135908977,-500.0,0.00057808,120]
[357550855,1744135908987,-702.1,0.00057808,120]
[357550856,1744135908997,-500.0,0.00057808,120]
[357550857,1744135909006,-594.48,0.00057808,120]
[357550858,1744135909016,-500.0,0.00057808,120]
[357550859,1744135909028,-1282.28,0.00057808,120]
[357550860,1744135909037,-500.0,0.00057808,120]
[357550861,1744135909048,-850.45,0.00057808,120]
[357550862,1744135909058,-540.94,0.00057808,120]
[357550863,1744135909068,-500.0,0.00057808,120]
[357550864,1744135909077,-660.48,0.00057808,120]
[357550865,1744135909087,-763.5,0.00057808,120]
[357550866,1744135909096,-768.76,0.00057808,120]
[357550867,1744135909107,-500.0,0.00057808,120]
[357550868,1744135909117,-828.56,0.00057808,120]
[357550869,1744135909126,-500.0,0.00057808,120]
[357550870,1744135909136,-500.0,0.00057808,120]
[357550871,1744135909146,-500.0,0.00057808,120]
[357550872,1744135909156,-516.93,0.00057808,120]
[357550873,1744135909166,-500.0,0.00057808,120]
[357550874,1744135909175,-500.0,0.00057808,120]
[357550875,1744135909184,-959.29,0.00057808,120]
[357550876,1744135909193,-500.0,0.00057808,120]
[357550877,1744135909203,-500.0,0.00057808,120]
[357550878,1744135909213,-500.0,0.00057808,120]
[357550879,1744135909223,-500.0,0.00057808,120]
[357550880,1744135909232,-431.04656715,0.00057808,120]
[357550881,1744135909242,-566.02,0.00057808,120]
[357550882,1744135909252,-714.7,0.00057808,120]
[357550883,1744135909263,-620.16,0.00057808,120]
[357550884,1744135909272,-683.43,0.00057808,120]
[357550885,1744135909282,-963.69,0.00057808,120]
[357550886,1744135909291,-528.14,0.00057808,120]
[357550887,1744135909303,-500.0,0.00057808,120]
[357550888,1744135909316,-500.0,0.00057808,120]
[357550889,1744135909326,-500.0,0.00057808,120]
[357550890,1744135909336,-524.59,0.00057808,120]
[357550891,1744135909346,-500.0,0.00057808,120]
[357550892,1744135909356,-500.0,0.00057808,120]
[357550893,1744135909366,-500.0,0.00057808,120]
[357550894,1744135909376,-310.30094828,0.00057808,120]
[357550895,1744135909386,-1529.63,0.00057808,120]
[357550896,1744135909396,-500.0,0.00057808,120]
[357550897,1744135909406,-524.58,0.00057808,120]
[357550898,1744135909416,-737.15,0.00057808,120]
[357550899,1744135909426,-500.0,0.00057808,120]
[357550900,1744135909435,-500.0,0.00057808,120]
[357550901,1744135909445,-500.0,0.00057808,120]
[357550902,1744135909455,-577.69,0.00057808,120]
[357550903,1744135909465,-500.0,0.00057808,120]
[357550904,1744135909475,-505.48,0.00057808,120]
[357550905,1744135909484,-500.0,0.00057808,120]
[357550906,1744135909494,-500.0,0.00057808,120]
[357550907,1744135909504,-594.23,0.00057808,120]
[357550908,1744135909514,-500.0,0.00057808,120]
[357550909,1744135909524,-797.82,0.00057808,120]
[357550910,1744135909535,-1000.0,0.00057808,120]
[357550911,1744135909545,-500.0,0.00057808,120]
[357550912,1744135909556,-500.0,0.00057808,120]
[357550913,1744135909566,-500.0,0.00057808,120]
[357550914,1744135909576,-500.0,0.00057808,120]
[357550915,1744135909586,-570.96,0.00057808,120]
[357550916,1744135909596,-500.0,0.00057808,120]
[357550917,1744135909606,-554.84,0.00057808,120]
[357550918,1744135909618,-500.0,0.00057808,120]
[357550919,1744135909627,-1205.99,0.00057808,120]
[357550920,1744135909637,-737.46,0.00057808,120]
[357550921,1744135909647,-307.14589344,0.00057808,120]
[357550922,1744135909659,-508.06,0.00057808,120]
[357550923,1744135909669,-500.0,0.00057808,120]
[357550924,1744135909679,-500.0,0.00057808,120]
[357550925,1744135909688,-830.9,0.00057808,120]
[357550926,1744135909700,-500.0,0.00057808,120]
[357550927,1744135909712,-404.9377046,0.00057808,120]
[357550928,1744135909722,-353.85770833,0.00057808,120]
[357550929,1744135909732,-593.3,0.00057808,120]
[357550930,1744135909742,-500.0,0.00057808,120]
[357550931,1744135909752,-568.34,0.00057808,120]
[357550932,1744135909762,-547.36,0.00057808,120]
[357550933,1744135909772,-500.0,0.00057808,120]
[357550934,1744135909782,-500.0,0.00057808,120]
[357550935,1744135909792,-512.59,0.00057808,120]
[357550936,1744135909802,-500.0,0.00057808,120]
[357550937,1744135909812,-600.21,0.00057808,120]
[357550938,1744135909822,-1080.18,0.00057808,120]
[357550939,1744135909832,-500.0,0.00057808,120]
[357550940,1744135909847,-500.0,0.00057808,120]
[357550941,1744135909858,-500.0,0.00057808,120]
[357550942,1744135909871,-500.0,0.00057808,120]
[357550943,1744135909886,-500.0,0.00057808,120]
[357550944,1744135909902,-565.33,0.00057808,120]
[357550945,1744135909916,-500.0,0.00057808,120]
[357550946,1744135909926,-1102.49,0.00057808,120]
[357550947,1744135909936,-627.68,0.00057808,120]
[357550948,1744135909947,-500.0,0.00057808,120]
[357550949,1744135909958,-500.0,0.00057808,120]
[357550950,1744135909968,-500.0,0.00057808,120]
[357550951,1744135909979,-500.0,0.00057808,120]
[357550952,1744135909988,-500.0,0.00057808,120]
[357550953,1744135909998,-651.86,0.00057808,120]
[357550954,1744135910007,-500.0,0.00057808,120]
[357550955,1744135910017,-615.97,0.00057808,3]
[357550956,1744135910027,-1008.75,0.00057808,120]
[357550957,1744135910037,-500.0,0.00057808,120]
[357550958,1744135910047,-395.82966112,0.00057808,120]
[357550959,1744135910056,-548.5,0.00057808,120]
[357550960,1744135910066,-247.15769299,0.00057808,120]
[357550961,1744135910075,-500.0,0.00057808,120]
[357550962,1744135910085,-630.49,0.00057808,120]
[357550963,1744135910094,-500.0,0.00057808,120]
[357550964,1744135910103,-1865.07,0.00057808,120]
[357550965,1744135910113,-500.0,0.00057808,120]
[357550966,1744135910123,-546.05,0.00057808,120]
[357550967,1744135910133,-511.68,0.00057808,120]
[357550968,1744135910143,-564.61,0.00057808,120]
[357550969,1744135910157,-500.0,0.00057808,120]
[357550970,1744135910168,-763.62,0.00057808,120]
[357550971,1744135910177,-500.0,0.00057808,120]
[357550972,1744135910187,-1679.19,0.00057808,120]
[357550973,1744135910197,-500.0,0.00057808,120]
[357550974,1744135910207,-500.0,0.00057808,120]